[Event "*** Titled Tuesday Blitz"]
[Site "Chess.com"]
[Date "2020.12.01"]
[Round "11"]
[White "AlexSuv"]
[Black "profofchess"]
[Result "1-0"]
[WhiteElo "2560"]
[BlackElo "2435"]
[TimeControl "180+1"]
[EndTime "12:06:14 PST"]
[Termination "AlexSuv won on time"]

1. d4 {[%clk 0:03:00.9]} 1... Nf6 {[%clk 0:03:00]} 2. Nf3 {[%clk 0:03:00.3]}
2... e6 {[%clk 0:02:59.6]} 3. Bg5 {[%clk 0:03:00.5]} 3... Be7 {[%clk 0:02:58.7]}
4. Nbd2 {[%clk 0:03:00]} 4... c5 {[%clk 0:02:56.5]} 5. e3 {[%clk 0:02:59.7]}
5... b6 {[%clk 0:02:56.4]} 6. c3 {[%clk 0:03:00.1]} 6... Bb7 {[%clk 0:02:56.3]}
7. Bd3 {[%clk 0:03:00.6]} 7... cxd4 {[%clk 0:02:56.6]} 8. exd4 {[%clk
0:03:00.4]} 8... O-O {[%clk 0:02:54.1]} 9. O-O {[%clk 0:03:00.3]} 9... d6 {[%clk
0:02:53.2]} 10. Qe2 {[%clk 0:02:59.2]} 10... Nbd7 {[%clk 0:02:53.2]} 11. Rfe1
{[%clk 0:02:55.1]} 11... Re8 {[%clk 0:02:49]} 12. h3 {[%clk 0:02:48.6]} 12... a6
{[%clk 0:02:43.5]} 13. a4 {[%clk 0:02:46.7]} 13... Nf8 {[%clk 0:02:43.4]} 14.
Bxf6 {[%clk 0:02:23.4]} 14... Bxf6 {[%clk 0:02:42.6]} 15. Ne4 {[%clk 0:02:23.8]}
15... Be7 {[%clk 0:02:36.7]} 16. Ng3 {[%clk 0:02:22.8]} 16... Ng6 {[%clk
0:02:35.6]} 17. Be4 {[%clk 0:02:20.6]} 17... Qc7 {[%clk 0:02:31.2]} 18. Bxb7
{[%clk 0:02:20.3]} 18... Qxb7 {[%clk 0:02:32.1]} 19. Ne4 {[%clk 0:02:17.2]}
19... b5 {[%clk 0:02:25.8]} 20. axb5 {[%clk 0:02:08.1]} 20... axb5 {[%clk
0:02:26.7]} 21. Ned2 {[%clk 0:01:57.6]} 21... h6 {[%clk 0:01:47.7]} 22. g3
{[%clk 0:01:42.5]} 22... Ra6 {[%clk 0:01:36.3]} 23. h4 {[%clk 0:01:37.9]} 23...
Rea8 {[%clk 0:01:33.9]} 24. Rxa6 {[%clk 0:01:37.3]} 24... Rxa6 {[%clk
0:01:32.2]} 25. h5 {[%clk 0:01:38.2]} 25... Nf8 {[%clk 0:01:32]} 26. Qe4 {[%clk
0:01:38.9]} 26... Qxe4 {[%clk 0:01:22.7]} 27. Nxe4 {[%clk 0:01:38.5]} 27... Ra2
{[%clk 0:01:05.6]} 28. Rb1 {[%clk 0:01:37.6]} 28... Nd7 {[%clk 0:01:04.9]} 29.
Ne1 {[%clk 0:01:35.4]} 29... d5 {[%clk 0:01:03.2]} 30. Nd2 {[%clk 0:01:30.1]}
30... Nb6 {[%clk 0:00:58]} 31. Nd3 {[%clk 0:01:24.6]} 31... Nc4 {[%clk
0:00:56.8]} 32. Nxc4 {[%clk 0:01:24.2]} 32... dxc4 {[%clk 0:00:42.6]} 33. Ne5
{[%clk 0:01:20.8]} 33... Bd6 {[%clk 0:00:21.4]} 34. Ng4 {[%clk 0:01:14.4]} 34...
Kf8 {[%clk 0:00:17.7]} 35. Ne3 {[%clk 0:01:12.8]} 35... Ke7 {[%clk 0:00:14.4]}
36. b3 {[%clk 0:01:12.4]} 36... cxb3 {[%clk 0:00:06.7]} 37. Rxb3 {[%clk
0:01:13]} 37... Ra5 {[%clk 0:00:05.8]} 38. Kg2 {[%clk 0:01:13.6]} 38... Kd7
{[%clk 0:00:04.7]} 39. f4 {[%clk 0:01:09.1]} 39... Kc6 {[%clk 0:00:04.8]} 40.
Kf3 {[%clk 0:01:09.5]} 40... Ra1 {[%clk 0:00:04.2]} 41. c4 {[%clk 0:01:06]}
41... bxc4 {[%clk 0:00:03.7]} 42. Nxc4 {[%clk 0:01:06]} 42... Bc7 {[%clk
0:00:04.2]} 43. Ne3 {[%clk 0:01:00.5]} 43... Rc1 {[%clk 0:00:03.3]} 44. Ng4
{[%clk 0:00:52.9]} 44... Kd7 {[%clk 0:00:03.1]} 45. Rd3 {[%clk 0:00:52.1]} 45...
Rc2 {[%clk 0:00:02.9]} 46. Ne3 {[%clk 0:00:51.2]} 46... Ra2 {[%clk 0:00:02.4]}
47. d5 {[%clk 0:00:51.4]} 47... exd5 {[%clk 0:00:02.8]} 48. Nxd5 {[%clk
0:00:51.7]} 48... Bd6 {[%clk 0:00:03.2]} 49. Nb6+ {[%clk 0:00:51.4]} 49... Kc6
{[%clk 0:00:03.6]} 50. Nc4 {[%clk 0:00:51.6]} 50... Bc7 {[%clk 0:00:04]} 51. Ne3
{[%clk 0:00:50.9]} 51... Ra4 {[%clk 0:00:03.8]} 52. Nf5 {[%clk 0:00:50.8]} 52...
g6 {[%clk 0:00:02.9]} 53. hxg6 {[%clk 0:00:49.8]} 53... fxg6 {[%clk 0:00:03.2]}
54. Nxh6 {[%clk 0:00:50.2]} 54... Ra1 {[%clk 0:00:03.1]} 55. Nf7 {[%clk
0:00:49.4]} 55... Rf1+ {[%clk 0:00:03.1]} 56. Kg4 {[%clk 0:00:49.7]} 56... Rg1
{[%clk 0:00:03.1]} 57. Kg5 {[%clk 0:00:49.3]} 57... Kc5 {[%clk 0:00:02.3]} 58.
Rf3 {[%clk 0:00:48.4]} 58... Kd4 {[%clk 0:00:01.9]} 59. Kxg6 {[%clk 0:00:48.8]}
59... Ke4 {[%clk 0:00:02.3]} 60. Ng5+ {[%clk 0:00:45.3]} 60... Kd4 {[%clk
0:00:02.7]} 61. Kf5 {[%clk 0:00:43.8]} 61... Ra1 {[%clk 0:00:01.9]} 62. Ne6+
{[%clk 0:00:44]} 1-0

[Event "*** Titled Tuesday Blitz"]
[Site "Chess.com"]
[Date "2020.12.01"]
[Round "11"]
[White "Artyom_ChessMate"]
[Black "Oglob71"]
[Result "1-0"]
[WhiteElo "2581"]
[BlackElo "2445"]
[TimeControl "180+1"]
[EndTime "12:06:18 PST"]
[Termination "Artyom_ChessMate won by resignation"]

1. e4 {[%clk 0:03:00.9]} 1... c5 {[%clk 0:02:54.6]} 2. Nc3 {[%clk 0:03:00.6]}
2... a6 {[%clk 0:02:52.3]} 3. g3 {[%clk 0:02:59.7]} 3... b5 {[%clk 0:02:51.5]}
4. Bg2 {[%clk 0:02:57.4]} 4... Bb7 {[%clk 0:02:51.9]} 5. d3 {[%clk 0:02:57.9]}
5... e6 {[%clk 0:02:52.4]} 6. Nh3 {[%clk 0:02:58.2]} 6... Nf6 {[%clk 0:02:51.6]}
7. O-O {[%clk 0:02:58.3]} 7... b4 {[%clk 0:02:52.1]} 8. Ne2 {[%clk 0:02:44.2]}
8... d5 {[%clk 0:02:52.4]} 9. exd5 {[%clk 0:02:42.9]} 9... Bxd5 {[%clk
0:02:51.2]} 10. Nhf4 {[%clk 0:02:40.3]} 10... Bxg2 {[%clk 0:02:48.6]} 11. Nxg2
{[%clk 0:02:39]} 11... Nc6 {[%clk 0:02:48.8]} 12. Nef4 {[%clk 0:02:37.6]} 12...
Be7 {[%clk 0:02:47.8]} 13. Be3 {[%clk 0:02:37.4]} 13... Rc8 {[%clk 0:02:46.5]}
14. Qf3 {[%clk 0:02:37.5]} 14... O-O {[%clk 0:02:45.3]} 15. h4 {[%clk
0:02:27.9]} 15... Nd4 {[%clk 0:02:43]} 16. Qd1 {[%clk 0:02:27.9]} 16... a5
{[%clk 0:02:39.9]} 17. a3 {[%clk 0:02:24.5]} 17... Qb6 {[%clk 0:02:35.5]} 18.
axb4 {[%clk 0:02:24.3]} 18... axb4 {[%clk 0:02:35.6]} 19. Ne1 {[%clk 0:02:13.4]}
19... Qb7 {[%clk 0:02:35.3]} 20. Ne2 {[%clk 0:01:58.3]} 20... Nf5 {[%clk
0:02:31.9]} 21. Bd2 {[%clk 0:01:49.9]} 21... Rfd8 {[%clk 0:02:31.6]} 22. Nf4
{[%clk 0:01:42.9]} 22... Nd4 {[%clk 0:02:29.6]} 23. Ne2 {[%clk 0:01:30.7]} 23...
Nf3+ {[%clk 0:02:20.4]} 24. Nxf3 {[%clk 0:01:30.7]} 24... Qxf3 {[%clk
0:02:20.6]} 25. b3 {[%clk 0:01:22]} 25... Nd5 {[%clk 0:02:15.8]} 26. Nf4 {[%clk
0:01:19.8]} 26... Qxd1 {[%clk 0:02:15]} 27. Rfxd1 {[%clk 0:01:18.5]} 27... Bf6
{[%clk 0:02:14.5]} 28. Nxd5 {[%clk 0:01:11.1]} 28... exd5 {[%clk 0:02:11.9]} 29.
Ra5 {[%clk 0:01:05.6]} 29... Bd4 {[%clk 0:02:09.1]} 30. Be3 {[%clk 0:01:01.6]}
30... Bxe3 {[%clk 0:01:52.2]} 31. fxe3 {[%clk 0:01:02.5]} 31... Kf8 {[%clk
0:01:51.6]} 32. Kf2 {[%clk 0:01:00.7]} 32... Ke7 {[%clk 0:01:50.4]} 33. Ke2
{[%clk 0:00:59.6]} 33... Ke6 {[%clk 0:01:50.3]} 34. Rb5 {[%clk 0:00:50.5]} 34...
Rd6 {[%clk 0:01:43.9]} 35. Ra1 {[%clk 0:00:45]} 35... Rc7 {[%clk 0:01:40.7]} 36.
Raa5 {[%clk 0:00:44]} 36... Rdc6 {[%clk 0:01:41]} 37. Kd2 {[%clk 0:00:34.5]}
37... f6 {[%clk 0:01:40.1]} 38. Rb8 {[%clk 0:00:29.8]} 38... c4 {[%clk
0:01:38.2]} 39. bxc4 {[%clk 0:00:18.1]} 39... dxc4 {[%clk 0:01:38.1]} 40. d4
{[%clk 0:00:18.3]} 40... Kf7 {[%clk 0:01:30.8]} 41. Rxb4 {[%clk 0:00:17.4]}
41... c3+ {[%clk 0:01:29.8]} 42. Kd3 {[%clk 0:00:17.3]} 42... Re6 {[%clk
0:01:29.9]} 43. Rc5 {[%clk 0:00:16.6]} 43... Rce7 {[%clk 0:01:29.9]} 44. Rxc3
{[%clk 0:00:12.8]} 44... Rxe3+ {[%clk 0:01:30.1]} 45. Kc4 {[%clk 0:00:13.4]}
45... Rxc3+ {[%clk 0:01:27.3]} 46. Kxc3 {[%clk 0:00:14.3]} 46... Re3+ {[%clk
0:01:27.6]} 47. Kc4 {[%clk 0:00:14]} 47... Rxg3 {[%clk 0:01:28]} 48. Rb7+ {[%clk
0:00:14.3]} 48... Ke6 {[%clk 0:01:24.9]} 49. Rb6+ {[%clk 0:00:14.5]} 49... Kd7
{[%clk 0:01:24.2]} 50. Kd5 {[%clk 0:00:14.7]} 50... Kc7 {[%clk 0:01:23.9]} 51.
Re6 {[%clk 0:00:12.2]} 51... h5 {[%clk 0:01:17.6]} 52. c4 {[%clk 0:00:11.5]}
52... Rg4 {[%clk 0:01:10.6]} 53. c5 {[%clk 0:00:09.9]} 53... Rxh4 {[%clk
0:01:03.6]} 54. Re7+ {[%clk 0:00:10.2]} 54... Kd8 {[%clk 0:01:03.9]} 55. Rxg7
{[%clk 0:00:11.1]} 55... Rh1 {[%clk 0:01:02.5]} 56. Kd6 {[%clk 0:00:09.9]} 56...
Ke8 {[%clk 0:01:02.2]} 57. c6 {[%clk 0:00:10.3]} 57... Kf8 {[%clk 0:01:00.8]}
58. Rh7 {[%clk 0:00:10.4]} 58... Kg8 {[%clk 0:01:00.1]} 59. c7 {[%clk
0:00:10.2]} 59... Rc1 {[%clk 0:00:59.5]} 60. Rxh5 {[%clk 0:00:09.9]} 60... Kf7
{[%clk 0:00:59.1]} 61. Rc5 {[%clk 0:00:10]} 61... Rd1 {[%clk 0:00:56.7]} 62.
c8=Q {[%clk 0:00:09.4]} 62... Rxd4+ {[%clk 0:00:56.9]} 63. Rd5 {[%clk
0:00:09.9]} 63... Re4 {[%clk 0:00:56.4]} 64. Qd7+ {[%clk 0:00:09.4]} 64... Kg6
{[%clk 0:00:56.2]} 65. Qf5+ {[%clk 0:00:09.4]} 65... Kf7 {[%clk 0:00:56]} 66.
Qxe4 {[%clk 0:00:10.3]} 1-0

[Event "*** Titled Tuesday Blitz"]
[Site "Chess.com"]
[Date "2020.12.01"]
[Round "11"]
[White "aleksey1203borisovi4"]
[Black "GelmanAlexander"]
[Result "1-0"]
[WhiteElo "2487"]
[BlackElo "2567"]
[TimeControl "180+1"]
[EndTime "12:06:20 PST"]
[Termination "aleksey1203borisovi4 won on time"]

1. g3 {[%clk 0:02:59.9]} 1... Nf6 {[%clk 0:02:59]} 2. Bg2 {[%clk 0:03:00.8]}
2... c5 {[%clk 0:02:59.4]} 3. Nf3 {[%clk 0:02:57.7]} 3... e6 {[%clk 0:02:59.3]}
4. O-O {[%clk 0:02:58.6]} 4... Be7 {[%clk 0:02:57.8]} 5. b3 {[%clk 0:02:52.7]}
5... O-O {[%clk 0:02:55.5]} 6. Bb2 {[%clk 0:02:53.6]} 6... d6 {[%clk 0:02:53.4]}
7. d3 {[%clk 0:02:49.3]} 7... Nc6 {[%clk 0:02:52.6]} 8. Nbd2 {[%clk 0:02:50.2]}
8... Qc7 {[%clk 0:02:46.5]} 9. h3 {[%clk 0:02:51.1]} 9... b6 {[%clk 0:02:44.7]}
10. Kh2 {[%clk 0:02:47.3]} 10... Bb7 {[%clk 0:02:44.5]} 11. a3 {[%clk
0:02:46.4]} 11... a6 {[%clk 0:02:44.6]} 12. e3 {[%clk 0:02:38.8]} 12... b5
{[%clk 0:02:40.2]} 13. c4 {[%clk 0:02:32.7]} 13... Rab8 {[%clk 0:02:39.3]} 14.
Qc2 {[%clk 0:02:27.9]} 14... Ba8 {[%clk 0:02:39.1]} 15. Kg1 {[%clk 0:02:20.1]}
15... h6 {[%clk 0:02:37.9]} 16. Rfd1 {[%clk 0:02:15.4]} 16... Rfc8 {[%clk
0:02:37.1]} 17. Bc3 {[%clk 0:02:09.3]} 17... a5 {[%clk 0:02:28.4]} 18. cxb5
{[%clk 0:02:04.9]} 18... Rxb5 {[%clk 0:02:28.2]} 19. Rab1 {[%clk 0:02:01]} 19...
d5 {[%clk 0:02:20.9]} 20. Rdc1 {[%clk 0:01:56.5]} 20... Qb8 {[%clk 0:02:09.9]}
21. Qa2 {[%clk 0:01:55.9]} 21... Nd7 {[%clk 0:01:55.9]} 22. e4 {[%clk
0:01:49.2]} 22... Bf6 {[%clk 0:01:48.2]} 23. Bxf6 {[%clk 0:01:43.9]} 23... Nxf6
{[%clk 0:01:47.9]} 24. Qc2 {[%clk 0:01:41.1]} 24... Ne5 {[%clk 0:01:15.7]} 25.
Nxe5 {[%clk 0:01:35.9]} 25... Qxe5 {[%clk 0:01:15.5]} 26. Re1 {[%clk 0:01:33]}
26... Qb8 {[%clk 0:01:11]} 27. exd5 {[%clk 0:01:33.1]} 27... exd5 {[%clk
0:01:08.9]} 28. Rbc1 {[%clk 0:01:26.6]} 28... Rb6 {[%clk 0:00:59.6]} 29. d4
{[%clk 0:01:23]} 29... c4 {[%clk 0:00:54]} 30. bxc4 {[%clk 0:01:17.1]} 30...
dxc4 {[%clk 0:00:53.8]} 31. Bxa8 {[%clk 0:01:10.2]} 31... Qxa8 {[%clk
0:00:54.4]} 32. Nxc4 {[%clk 0:01:04.6]} 32... Rbc6 {[%clk 0:00:54.1]} 33. Qd3
{[%clk 0:00:53.7]} 33... Qa6 {[%clk 0:00:49.3]} 34. Ne5 {[%clk 0:00:49.3]} 34...
Rxc1 {[%clk 0:00:21.7]} 35. Qxa6 {[%clk 0:00:44.7]} 35... Rxe1+ {[%clk 0:00:21]}
36. Kg2 {[%clk 0:00:45.6]} 36... Rc2 {[%clk 0:00:15.9]} 37. Qa8+ {[%clk
0:00:39.7]} 37... Kh7 {[%clk 0:00:15.6]} 38. Nxf7 {[%clk 0:00:35.2]} 38... Ree2
{[%clk 0:00:13.5]} 39. Qh8+ {[%clk 0:00:30.7]} 39... Kg6 {[%clk 0:00:13.8]} 40.
Ne5+ {[%clk 0:00:26.2]} 40... Kf5 {[%clk 0:00:14]} 41. Nd3 {[%clk 0:00:21.3]}
41... Ke4 {[%clk 0:00:10.8]} 42. Qxg7 {[%clk 0:00:17.1]} 42... Nd5 {[%clk
0:00:03.6]} 43. Nc5+ {[%clk 0:00:10]} 43... Rxc5 {[%clk 0:00:03.3]} 44. dxc5
{[%clk 0:00:07.6]} 44... Ne3+ {[%clk 0:00:03.4]} 45. Kg1 {[%clk 0:00:06.7]}
45... Re1+ {[%clk 0:00:01.5]} 46. Kh2 {[%clk 0:00:07]} 1-0

[Event "*** Titled Tuesday Blitz"]
[Site "Chess.com"]
[Date "2020.12.01"]
[Round "11"]
[White "Zhigalko_Sergei"]
[Black "BogdanDeac"]
[Result "1-0"]
[WhiteElo "2891"]
[BlackElo "2958"]
[TimeControl "180+1"]
[EndTime "12:06:24 PST"]
[Termination "Zhigalko_Sergei won by resignation"]

1. e4 {[%clk 0:03:00.9]} 1... e5 {[%clk 0:02:59.8]} 2. Nf3 {[%clk 0:03:01]} 2...
Nc6 {[%clk 0:02:59.9]} 3. Bc4 {[%clk 0:03:01.6]} 3... Nf6 {[%clk 0:02:59.7]} 4.
d3 {[%clk 0:02:59.9]} 4... Bc5 {[%clk 0:02:59.8]} 5. O-O {[%clk 0:02:59.1]} 5...
d6 {[%clk 0:02:59.1]} 6. c3 {[%clk 0:02:49.9]} 6... a6 {[%clk 0:02:56.4]} 7. Bb3
{[%clk 0:02:47.9]} 7... O-O {[%clk 0:02:54.4]} 8. Nbd2 {[%clk 0:02:44.9]} 8...
Ba7 {[%clk 0:02:51.2]} 9. h3 {[%clk 0:02:44]} 9... Kh8 {[%clk 0:02:50.6]} 10.
Nc4 {[%clk 0:02:37.6]} 10... h6 {[%clk 0:02:20.2]} 11. Be3 {[%clk 0:02:35.2]}
11... b5 {[%clk 0:02:19.7]} 12. Ncd2 {[%clk 0:02:33]} 12... d5 {[%clk
0:01:58.4]} 13. Bxa7 {[%clk 0:02:27.9]} 13... Rxa7 {[%clk 0:01:58]} 14. Re1
{[%clk 0:02:19.4]} 14... dxe4 {[%clk 0:01:27.4]} 15. Nxe4 {[%clk 0:02:09.8]}
15... Nxe4 {[%clk 0:01:27.2]} 16. Rxe4 {[%clk 0:02:10]} 16... Bf5 {[%clk
0:01:18.6]} 17. Re3 {[%clk 0:02:08.7]} 17... f6 {[%clk 0:01:07.6]} 18. Nh4
{[%clk 0:01:38.2]} 18... Bh7 {[%clk 0:01:06.2]} 19. Qh5 {[%clk 0:01:25.2]} 19...
Qe8 {[%clk 0:00:51.6]} 20. Qf3 {[%clk 0:00:50.2]} 20... Qd7 {[%clk 0:00:41.8]}
21. Qh5 {[%clk 0:00:35.6]} 21... Qe8 {[%clk 0:00:41.2]} 22. Qf3 {[%clk
0:00:29.2]} 22... a5 {[%clk 0:00:35.4]} 23. d4 {[%clk 0:00:20]} 23... Qd7 {[%clk
0:00:34.5]} 24. dxe5 {[%clk 0:00:10.6]} 24... a4 {[%clk 0:00:31.1]} 25. Bd5
{[%clk 0:00:10.3]} 25... Ne7 {[%clk 0:00:30.4]} 26. Rd1 {[%clk 0:00:07.6]} 26...
Qe8 {[%clk 0:00:20.7]} 27. exf6 {[%clk 0:00:06.9]} 27... Rxf6 {[%clk 0:00:20.7]}
28. Qe2 {[%clk 0:00:07.2]} 28... c6 {[%clk 0:00:21]} 29. Bxc6 {[%clk 0:00:05.4]}
29... Qxc6 {[%clk 0:00:21.3]} 30. Rxe7 {[%clk 0:00:05.7]} 30... Ra8 {[%clk
0:00:17.2]} 31. Rdd7 {[%clk 0:00:04.8]} 31... Rg8 {[%clk 0:00:17.4]} 32. Nf3
{[%clk 0:00:05.2]} 32... Bf5 {[%clk 0:00:16.6]} 33. Ne5 {[%clk 0:00:04.1]} 33...
Qb6 {[%clk 0:00:15.5]} 34. Rb7 {[%clk 0:00:03.6]} 34... Qd6 {[%clk 0:00:14.6]}
35. Nf7+ {[%clk 0:00:04.2]} 35... Rxf7 {[%clk 0:00:14.8]} 36. Rxf7 {[%clk
0:00:05.1]} 36... Be6 {[%clk 0:00:15]} 37. Rfe7 {[%clk 0:00:05.4]} 37... Bc4
{[%clk 0:00:15]} 38. Qe5 {[%clk 0:00:04.9]} 38... Qg6 {[%clk 0:00:14.9]} 39. Kh2
{[%clk 0:00:04]} 39... Bxa2 {[%clk 0:00:14.3]} 40. Rbd7 {[%clk 0:00:03.9]} 40...
Bc4 {[%clk 0:00:14.1]} 41. Rd6 {[%clk 0:00:03.9]} 41... Qg5 {[%clk 0:00:14.3]}
42. Qxg5 {[%clk 0:00:02.8]} 42... hxg5 {[%clk 0:00:15.2]} 43. Re5 {[%clk
0:00:03.1]} 43... g6 {[%clk 0:00:14.1]} 44. Rxg5 {[%clk 0:00:03.1]} 44... Kh7
{[%clk 0:00:14.7]} 45. Rg4 {[%clk 0:00:03]} 45... Bb3 {[%clk 0:00:13.1]} 46.
Rh4+ {[%clk 0:00:02.8]} 46... Kg7 {[%clk 0:00:13.1]} 47. Rhd4 {[%clk 0:00:03]}
47... Bc4 {[%clk 0:00:13.1]} 48. Rd8 {[%clk 0:00:03]} 48... Rxd8 {[%clk
0:00:12.5]} 49. Rxd8 {[%clk 0:00:03.9]} 49... Kf6 {[%clk 0:00:13.3]} 50. Rd4
{[%clk 0:00:03.9]} 50... Ke5 {[%clk 0:00:13.3]} 51. f4+ {[%clk 0:00:04.5]} 51...
Kf5 {[%clk 0:00:13.4]} 52. g4+ {[%clk 0:00:04.5]} 52... Ke6 {[%clk 0:00:13.9]}
53. Kg3 {[%clk 0:00:05.4]} 53... Kf6 {[%clk 0:00:14.2]} 54. h4 {[%clk
0:00:05.4]} 1-0

[Event "*** Titled Tuesday Blitz"]
[Site "Chess.com"]
[Date "2020.12.01"]
[Round "11"]
[White "Chamal_Gedgafov"]
[Black "Skat2704"]
[Result "0-1"]
[WhiteElo "2177"]
[BlackElo "2343"]
[TimeControl "180+1"]
[EndTime "12:06:24 PST"]
[Termination "Skat2704 won on time"]

1. d4 {[%clk 0:03:00.9]} 1... d5 {[%clk 0:02:59.9]} 2. c4 {[%clk 0:03:00.6]}
2... e6 {[%clk 0:03:00.1]} 3. Nc3 {[%clk 0:03:00.4]} 3... Nf6 {[%clk 0:03:00.1]}
4. cxd5 {[%clk 0:03:00.4]} 4... exd5 {[%clk 0:02:59.9]} 5. Bg5 {[%clk
0:03:00.5]} 5... Be7 {[%clk 0:02:59.9]} 6. e3 {[%clk 0:03:00.6]} 6... O-O {[%clk
0:02:59.7]} 7. Bd3 {[%clk 0:03:01]} 7... h6 {[%clk 0:02:57.7]} 8. Bh4 {[%clk
0:03:00.1]} 8... b6 {[%clk 0:02:55.6]} 9. Nf3 {[%clk 0:02:59.2]} 9... Bb7 {[%clk
0:02:55.7]} 10. O-O {[%clk 0:02:58.5]} 10... c5 {[%clk 0:02:55.7]} 11. Rc1
{[%clk 0:02:57.5]} 11... Na6 {[%clk 0:02:54.7]} 12. Ne5 {[%clk 0:02:53.9]} 12...
Nc7 {[%clk 0:02:49.9]} 13. Qe2 {[%clk 0:02:47.6]} 13... Ne4 {[%clk 0:02:39.8]}
14. Bxe7 {[%clk 0:02:32.2]} 14... Qxe7 {[%clk 0:02:38.7]} 15. f3 {[%clk
0:02:31.9]} 15... Nxc3 {[%clk 0:02:36.6]} 16. bxc3 {[%clk 0:02:30.5]} 16... Ne6
{[%clk 0:02:34.9]} 17. Bb1 {[%clk 0:02:22.1]} 17... Rac8 {[%clk 0:02:32.7]} 18.
Qd3 {[%clk 0:02:16.8]} 18... g6 {[%clk 0:02:14.9]} 19. Rce1 {[%clk 0:02:10.8]}
19... Ng7 {[%clk 0:02:02.6]} 20. e4 {[%clk 0:02:08]} 20... cxd4 {[%clk
0:01:58.9]} 21. cxd4 {[%clk 0:02:06.9]} 21... dxe4 {[%clk 0:01:56.2]} 22. fxe4
{[%clk 0:02:06.2]} 22... Rcd8 {[%clk 0:01:47.4]} 23. Nf3 {[%clk 0:02:02]} 23...
Ne6 {[%clk 0:01:43.6]} 24. d5 {[%clk 0:01:57.4]} 24... Nc5 {[%clk 0:01:43]} 25.
Qd4 {[%clk 0:01:51.4]} 25... Rfe8 {[%clk 0:01:31.7]} 26. h3 {[%clk 0:01:43.4]}
26... a5 {[%clk 0:01:27.7]} 27. Rf2 {[%clk 0:01:39]} 27... Qc7 {[%clk
0:01:17.2]} 28. Rb2 {[%clk 0:01:37.3]} 28... a4 {[%clk 0:01:12]} 29. Rd2 {[%clk
0:01:29.9]} 29... Ne6 {[%clk 0:01:03.9]} 30. Qf6 {[%clk 0:01:23.6]} 30... Nc5
{[%clk 0:00:54.4]} 31. Kh1 {[%clk 0:01:11.1]} 31... b5 {[%clk 0:00:48.3]} 32.
Rf2 {[%clk 0:01:04.4]} 32... Qe7 {[%clk 0:00:46.6]} 33. Qf4 {[%clk 0:01:01.6]}
33... b4 {[%clk 0:00:44.1]} 34. Nh4 {[%clk 0:00:49.4]} 34... Rxd5 {[%clk
0:00:31.7]} 35. exd5 {[%clk 0:00:39]} 35... Qxe1+ {[%clk 0:00:30.8]} 36. Rf1
{[%clk 0:00:39.4]} 36... Qe7 {[%clk 0:00:29.3]} 37. Qg3 {[%clk 0:00:33.9]} 37...
Bxd5 {[%clk 0:00:28.2]} 38. Nxg6 {[%clk 0:00:33.5]} 38... Qg5 {[%clk 0:00:22]}
39. Qf2 {[%clk 0:00:18.7]} 39... fxg6 {[%clk 0:00:20.3]} 40. Rg1 {[%clk
0:00:17.2]} 40... Ne6 {[%clk 0:00:19.5]} 41. Qb6 {[%clk 0:00:14.8]} 41... Rf8
{[%clk 0:00:18.8]} 42. Qxb4 {[%clk 0:00:13.2]} 42... Qg3 {[%clk 0:00:18]} 43.
Qg4 {[%clk 0:00:13.5]} 43... Qxg4 {[%clk 0:00:17.3]} 44. hxg4 {[%clk 0:00:14.4]}
44... Nf4 {[%clk 0:00:17.3]} 45. Bc2 {[%clk 0:00:08.4]} 45... Ne2 {[%clk
0:00:16.5]} 46. Re1 {[%clk 0:00:02]} 46... Rf2 {[%clk 0:00:16]} 0-1

[Event "*** Titled Tuesday Blitz"]
[Site "Chess.com"]
[Date "2020.12.01"]
[Round "11"]
[White "andrzej"]
[Black "yobdc"]
[Result "1/2-1/2"]
[WhiteElo "2364"]
[BlackElo "2462"]
[TimeControl "180+1"]
[EndTime "12:06:26 PST"]
[Termination "Game drawn by repetition"]

1. e4 {[%clk 0:03:00.9]} 1... d5 {[%clk 0:02:59]} 2. exd5 {[%clk 0:03:00.6]}
2... Qxd5 {[%clk 0:02:59.9]} 3. Nc3 {[%clk 0:03:00.5]} 3... Qd6 {[%clk
0:03:00.3]} 4. d4 {[%clk 0:02:59.4]} 4... c6 {[%clk 0:03:00.6]} 5. Bc4 {[%clk
0:02:57.7]} 5... Nf6 {[%clk 0:02:59.6]} 6. Nf3 {[%clk 0:02:52.3]} 6... Be6
{[%clk 0:02:59]} 7. Be2 {[%clk 0:02:31.3]} 7... Bg4 {[%clk 0:02:54.7]} 8. h3
{[%clk 0:02:29.5]} 8... Bh5 {[%clk 0:02:53.1]} 9. O-O {[%clk 0:02:28.7]} 9... e6
{[%clk 0:02:51.7]} 10. Bg5 {[%clk 0:02:21.7]} 10... Be7 {[%clk 0:02:51.4]} 11.
Bh4 {[%clk 0:02:21.6]} 11... O-O {[%clk 0:02:50.3]} 12. Bg3 {[%clk 0:02:21.5]}
12... Qd8 {[%clk 0:02:50]} 13. Ne5 {[%clk 0:02:14.5]} 13... Bxe2 {[%clk
0:02:49.4]} 14. Nxe2 {[%clk 0:02:15.4]} 14... Nbd7 {[%clk 0:02:47.8]} 15. Nf4
{[%clk 0:02:11.1]} 15... Nxe5 {[%clk 0:02:45.2]} 16. dxe5 {[%clk 0:02:12]} 16...
Qxd1 {[%clk 0:02:43.5]} 17. Rfxd1 {[%clk 0:02:11.9]} 17... Nd5 {[%clk
0:02:42.8]} 18. c4 {[%clk 0:02:01.1]} 18... Nb6 {[%clk 0:02:32.1]} 19. b3 {[%clk
0:01:57.7]} 19... Rfd8 {[%clk 0:02:32.2]} 20. Kf1 {[%clk 0:01:58]} 20... Ba3
{[%clk 0:02:10.3]} 21. Bh4 {[%clk 0:01:38.9]} 21... Rxd1+ {[%clk 0:02:09.4]} 22.
Rxd1 {[%clk 0:01:39.8]} 22... h6 {[%clk 0:02:06.2]} 23. Rd8+ {[%clk 0:01:27.9]}
23... Rxd8 {[%clk 0:02:05.7]} 24. Bxd8 {[%clk 0:01:28.8]} 24... Nd7 {[%clk
0:02:06.2]} 25. Nd3 {[%clk 0:01:24]} 25... Kf8 {[%clk 0:01:50.1]} 26. Ke2 {[%clk
0:01:21.3]} 26... Ke8 {[%clk 0:01:49.4]} 27. Bc7 {[%clk 0:01:21.8]} 27... Ke7
{[%clk 0:01:49.3]} 28. f4 {[%clk 0:01:20.7]} 28... h5 {[%clk 0:01:44.6]} 29. g4
{[%clk 0:01:19.9]} 29... hxg4 {[%clk 0:01:41.8]} 30. hxg4 {[%clk 0:01:20.8]}
30... b5 {[%clk 0:01:13.8]} 31. c5 {[%clk 0:01:09.2]} 31... f6 {[%clk
0:00:54.3]} 32. Bd6+ {[%clk 0:01:04.6]} 32... Kf7 {[%clk 0:00:54.2]} 33. b4
{[%clk 0:00:55]} 33... fxe5 {[%clk 0:00:49.9]} 34. fxe5 {[%clk 0:00:54.8]} 34...
Kg6 {[%clk 0:00:43.6]} 35. Kd2 {[%clk 0:00:44.4]} 35... Kg5 {[%clk 0:00:36.5]}
36. Kc2 {[%clk 0:00:43.9]} 36... Kxg4 {[%clk 0:00:36.1]} 37. Kb3 {[%clk
0:00:44]} 37... g5 {[%clk 0:00:31.1]} 38. Kxa3 {[%clk 0:00:42.8]} 38... Kf3
{[%clk 0:00:31.4]} 39. Kb2 {[%clk 0:00:37.5]} 39... g4 {[%clk 0:00:28.7]} 40.
Kc3 {[%clk 0:00:27.7]} 40... g3 {[%clk 0:00:27.7]} 41. Kd2 {[%clk 0:00:26.1]}
41... g2 {[%clk 0:00:24.6]} 42. Ne1+ {[%clk 0:00:25.9]} 42... Kg3 {[%clk
0:00:21.8]} 43. Nxg2 {[%clk 0:00:26.8]} 43... Kxg2 {[%clk 0:00:22.7]} 44. Ke3
{[%clk 0:00:25.1]} 44... Kg3 {[%clk 0:00:23]} 45. Ke4 {[%clk 0:00:25.3]} 45...
Kg4 {[%clk 0:00:23.4]} 46. Be7 {[%clk 0:00:24.3]} 46... Nb8 {[%clk 0:00:19.9]}
47. Bd6 {[%clk 0:00:23]} 47... Nd7 {[%clk 0:00:16.1]} 48. Be7 {[%clk 0:00:22.9]}
48... Kh5 {[%clk 0:00:16.4]} 49. Kf4 {[%clk 0:00:22]} 49... Kg6 {[%clk
0:00:16.7]} 50. Bd6 {[%clk 0:00:20.1]} 50... Kh5 {[%clk 0:00:14.7]} 51. Be7
{[%clk 0:00:19.5]} 51... Kg6 {[%clk 0:00:15.1]} 52. Bd6 {[%clk 0:00:19.8]} 52...
Kf7 {[%clk 0:00:13.7]} 53. Kg5 {[%clk 0:00:19.2]} 53... Kg7 {[%clk 0:00:12.1]}
54. Kh5 {[%clk 0:00:18.9]} 54... Kh7 {[%clk 0:00:12.2]} 55. Kg5 {[%clk
0:00:18.9]} 55... Kg7 {[%clk 0:00:12.5]} 56. Kh5 {[%clk 0:00:19.3]} 56... Kf7
{[%clk 0:00:12.9]} 57. Kg5 {[%clk 0:00:18.3]} 57... Kg7 {[%clk 0:00:13.1]}
1/2-1/2